Workbook

Sheet Gerar Hietograma
B1: Quartil
E2: intervalos | F2: 24
E3: TD | F3: 1440 | G3: min
E4: P | F4: 107 | G4: mm
E5: 2
E6: 3
A9: Tempo | B9: Hietograma | C9: 0
A10: =Interpolação!J12 -> 0 | B10: =Interpolação!N12 -> 0 | C10: =B10+C9 -> 0
A11: =Interpolação!J13 -> 60 | B11: =Interpolação!N13 -> 1.783333333 | C11: =B11+C10 -> 1.783333333
A12: =Interpolação!J14 -> 120 | B12: =Interpolação!N14 -> 1.783333333 | C12: 3.566666667
A13: =Interpolação!J15 -> 180 | B13: =Interpolação!N15 -> 2.853333333 | C13: 6.42
A14: =Interpolação!J16 -> 240 | B14: =Interpolação!N16 -> 3.566666667 | C14: 9.986666667
A15: =Interpolação!J17 -> 300 | B15: =Interpolação!N17 -> 4.458333333 | C15: 14.445
A16: =Interpolação!J18 -> 360 | B16: =Interpolação!N18 -> 8.025 | C16: 22.47
A17: =Interpolação!J19 -> 420 | B17: =Interpolação!N19 -> 8.916666667 | C17: 31.38666667
A18: =Interpolação!J20 -> 480 | B18: =Interpolação!N20 -> 9.63 | C18: 41.01666667
A19: =Interpolação!J21 -> 540 | B19: =Interpolação!N21 -> 9.808333333 | C19: 50.825
A20: =Interpolação!J22 -> 600 | B20: =Interpolação!N22 -> 9.808333333 | C20: 60.63333333
A21: =Interpolação!J23 -> 660 | B21: =Interpolação!N23 -> 9.451666667 | C21: 70.085
A22: =Interpolação!J24 -> 720 | B22: =Interpolação!N24 -> 8.025 | C22: 78.11
A23: =Interpolação!J25 -> 780 | B23: =Interpolação!N25 -> 6.241666667 | C23: 84.35166667
A24: =Interpolação!J26 -> 840 | B24: =Interpolação!N26 -> 5.528333333 | C24: 89.88
A25: =Interpolação!J27 -> 900 | B25: =Interpolação!N27 -> 3.745 | C25: 93.625
A26: =Interpolação!J28 -> 960 | B26: =Interpolação!N28 -> 2.675 | C26: 96.3
A27: =Interpolação!J29 -> 1020 | B27: =Interpolação!N29 -> 2.496666667 | C27: 98.79666667
A28: =Interpolação!J30 -> 1080 | B28: =Interpolação!N30 -> 1.783333333 | C28: 100.58
A29: =Interpolação!J31 -> 1140 | B29: =Interpolação!N31 -> 1.783333333 | C29: 102.3633333
A30: =Interpolação!J32 -> 1200 | B30: =Interpolação!N32 -> 1.07 | C30: 103.4333333
A31: =Interpolação!J33 -> 1260 | B31: =Interpolação!N33 -> 0.8916666667 | C31: 104.325
A32: =Interpolação!J34 -> 1320 | B32: =Interpolação!N34 -> 0.8916666667 | C32: 105.2166667
A33: =Interpolação!J35 -> 1380 | B33: =Interpolação!N35 -> 0.8916666667 | C33: 106.1083333
A34: =Interpolação!J36 -> 1440 | B34: =Interpolação!N36 -> 0.8916666667 | C34: 107
A35: =Interpolação!J37 -> 1500 | B35: =Interpolação!N37 -> 0
A36: =Interpolação!J38 -> 1560 | B36: =Interpolação!N38 -> 0
A37: =Interpolação!J39 -> 1620 | B37: =Interpolação!N39 -> 0
A38: =Interpolação!J40 -> 1680 | B38: =Interpolação!N40 -> 0
A39: =Interpolação!J41 -> 1740 | B39: =Interpolação!N41 -> 0
A40: =Interpolação!J42 -> 1800 | B40: =Interpolação!N42 -> 0
A41: =Interpolação!J43 -> 1860 | B41: =Interpolação!N43 -> 0
A42: =Interpolação!J44 -> 1920 | B42: =Interpolação!N44 -> 0
A43: =Interpolação!J45 -> 1980 | B43: =Interpolação!N45 -> 0
A44: =Interpolação!J46 -> 2040 | B44: =Interpolação!N46 -> 0
A45: =Interpolação!J47 -> 2100 | B45: =Interpolação!N47 -> 0
A46: =Interpolação!J48 -> 2160 | B46: =Interpolação!N48 -> 0
A47: =Interpolação!J49 -> 2220 | B47: =Interpolação!N49 -> 0
A48: =Interpolação!J50 -> 2280 | B48: =Interpolação!N50 -> 0
A49: =Interpolação!J51 -> 2340 | B49: =Interpolação!N51 -> 0
A50: =Interpolação!J52 -> 2400 | B50: =Interpolação!N52 -> 0
A51: =Interpolação!J53 -> 2460 | B51: =Interpolação!N53 -> 0
A52: =Interpolação!J54 -> 2520 | B52: =Interpolação!N54 -> 0

Sheet Ponto
A1: Table 3. Median Time Distributions of Heavy Storm Rainfall at a Point
A2: Cumulative percent of storm time | B2: First- quartile | C2: Second- quartile | D2: Third- quartile | E2: Fourth- quartile
A3: 0 | B3: 0 | C3: 0 | D3: 0 | E3: 0 | F3: 0 | G3: 0 | H3: 0 | I3: 0
A4: 5 | B4: 16 | C4: 3 | D4: 3 | E4: 2 | F4: =B4-B3 -> 16 | G4: =C4-C3 -> 3 | H4: 3 | I4: 2
A5: 10 | B5: 33 | C5: 8 | D5: 6 | E5: 5 | F5: =B5-B4 -> 17 | G5: 5 | H5: 3 | I5: 3
A6: 15 | B6: 43 | C6: 12 | D6: 9 | E6: 8 | F6: 10 | G6: 4 | H6: 3 | I6: 3
A7: 20 | B7: 52 | C7: 16 | D7: 12 | E7: 10 | F7: 9 | G7: 4 | H7: 3 | I7: 2
A8: 25 | B8: 60 | C8: 22 | D8: 15 | E8: 13 | F8: 8 | G8: 6 | H8: 3 | I8: 3
A9: 30 | B9: 66 | C9: 29 | D9: 19 | E9: 16 | F9: 6 | G9: 7 | H9: 4 | I9: 3
A10: 35 | B10: 71 | C10: 39 | D10: 23 | E10: 19 | F10: 5 | G10: 10 | H10: 4 | I10: 3
A11: 40 | B11: 75 | C11: 51 | D11: 27 | E11: 22 | F11: 4 | G11: 12 | H11: 4 | I11: 3
A12: 45 | B12: 79 | C12: 62 | D12: 32 | E12: 25 | F12: 4 | G12: 11 | H12: 5 | I12: 3
A13: 50 | B13: 82 | C13: 70 | D13: 38 | E13: 28 | F13: 3 | G13: 8 | H13: 6 | I13: 3
A14: 55 | B14: 84 | C14: 76 | D14: 45 | E14: 32 | F14: 2 | G14: 6 | H14: 7 | I14: 4
A15: 60 | B15: 86 | C15: 81 | D15: 57 | E15: 35 | F15: 2 | G15: 5 | H15: 12 | I15: 3
A16: 65 | B16: 88 | C16: 85 | D16: 70 | E16: 39 | F16: 2 | G16: 4 | H16: 13 | I16: 4
A17: 70 | B17: 90 | C17: 88 | D17: 79 | E17: 45 | F17: 2 | G17: 3 | H17: 9 | I17: 6
A18: 75 | B18: 92 | C18: 91 | D18: 85 | E18: 51 | F18: 2 | G18: 3 | H18: 6 | I18: 6
A19: 80 | B19: 94 | C19: 93 | D19: 89 | E19: 59 | F19: 2 | G19: 2 | H19: 4 | I19: 8
A20: 85 | B20: 96 | C20: 95 | D20: 92 | E20: 72 | F20: 2 | G20: 2 | H20: 3 | I20: 13
A21: 90 | B21: 97 | C21: 97 | D21: 95 | E21: 84 | F21: 1 | G21: 2 | H21: 3 | I21: 12
A22: 95 | B22: 98 | C22: 98 | D22: 97 | E22: 92 | F22: 1 | G22: 1 | H22: 2 | I22: 8
A23: 100 | B23: 100 | C23: 100 | D23: 100 | E23: 100 | F23: 2 | G23: 2 | H23: 3 | I23: 8

Sheet A10a50
A1: Table 4. Median Time Distributions of Heavy Storm Rainfall on Areas of 10 to 50 Square Miles
A2: Cumulative percent of storm time | B2: Cumulative percent of storm rainfall for given storm type
B3: First- quartile | C3: Second- quartile | D3: Third- quartile | E3: Fourth- quartile
A4: 0 | B4: 0 | C4: 0 | D4: 0 | E4: 0 | F4: 0 | G4: 0 | H4: 0 | I4: 0
A5: 5 | B5: 12 | C5: 3 | D5: 2 | E5: 2 | F5: =B5-B4 -> 12 | G5: =C5-C4 -> 3 | H5: 2 | I5: 2
A6: 10 | B6: 25 | C6: 6 | D6: 5 | E6: 4 | F6: =B6-B5 -> 13 | G6: 3 | H6: 3 | I6: 2
A7: 15 | B7: 38 | C7: 10 | D7: 8 | E7: 7 | F7: 13 | G7: 4 | H7: 3 | I7: 3
A8: 20 | B8: 51 | C8: 14 | D8: 12 | E8: 9 | F8: 13 | G8: 4 | H8: 4 | I8: 2
A9: 25 | B9: 62 | C9: 21 | D9: 14 | E9: 11 | F9: 11 | G9: 7 | H9: 2 | I9: 2
A10: 30 | B10: 69 | C10: 30 | D10: 17 | E10: 13 | F10: 7 | G10: 9 | H10: 3 | I10: 2
A11: 35 | B11: 74 | C11: 40 | D11: 20 | E11: 15 | F11: 5 | G11: 10 | H11: 3 | I11: 2
A12: 40 | B12: 78 | C12: 52 | D12: 23 | E12: 18 | F12: 4 | G12: 12 | H12: 3 | I12: 3
A13: 45 | B13: 81 | C13: 63 | D13: 27 | E13: 21 | F13: 3 | G13: 11 | H13: 4 | I13: 3
A14: 50 | B14: 84 | C14: 72 | D14: 33 | E14: 24 | F14: 3 | G14: 9 | H14: 6 | I14: 3
A15: 55 | B15: 86 | C15: 78 | D15: 42 | E15: 27 | F15: 2 | G15: 6 | H15: 9 | I15: 3
A16: 60 | B16: 88 | C16: 83 | D16: 55 | E16: 30 | F16: 2 | G16: 5 | H16: 13 | I16: 3
A17: 65 | B17: 90 | C17: 87 | D17: 69 | E17: 34 | F17: 2 | G17: 4 | H17: 14 | I17: 4
A18: 70 | B18: 92 | C18: 90 | D18: 79 | E18: 40 | F18: 2 | G18: 3 | H18: 10 | I18: 6
A19: 75 | B19: 94 | C19: 92 | D19: 86 | E19: 47 | F19: 2 | G19: 2 | H19: 7 | I19: 7
A20: 80 | B20: 95 | C20: 94 | D20: 91 | E20: 57 | F20: 1 | G20: 2 | H20: 5 | I20: 10
A21: 85 | B21: 96 | C21: 96 | D21: 94 | E21: 74 | F21: 1 | G21: 2 | H21: 3 | I21: 17
A22: 90 | B22: 97 | C22: 97 | D22: 96 | E22: 88 | F22: 1 | G22: 1 | H22: 2 | I22: 14
A23: 95 | B23: 98 | C23: 98 | D23: 98 | E23: 95 | F23: 1 | G23: 1 | H23: 2 | I23: 7
A24: 100 | B24: 100 | C24: 100 | D24: 100 | E24: 100 | F24: 2 | G24: 2 | H24: 2 | I24: 5

Sheet Planilha1
K3: 180
K4: 18
F5: Tempo | G5: 1q | H5: 2q | I5: 3q | J5: 4q
D6: 9 | E6: 1 | F6: 0 | G6: 0 | H6: 0 | I6: 0 | J6: 0 | K6: 10 | L6: =F6*$K$3/100 -> 0 | M6: =E6*($K$3/$K$4) -> 10
D7: 9 | E7: 2 | F7: 5 | G7: 12 | H7: 3 | I7: 2 | J7: 2 | K7: 10 | L7: =F7*$K$3/100 -> 9 | M7: =E7*($K$3/$K$4) -> 20
D8: 9 | E8: 3 | F8: 10 | G8: 25 | H8: 6 | I8: 5 | J8: 4 | K8: 10 | L8: 18 | M8: 30
D9: 9 | E9: 4 | F9: 15 | G9: 38 | H9: 10 | I9: 8 | J9: 7 | K9: 10 | L9: 27 | M9: 40
D10: 9 | E10: 5 | F10: 20 | G10: 51 | H10: 14 | I10: 12 | J10: 9 | K10: 10 | L10: 36 | M10: 50
D11: 9 | E11: 6 | F11: 25 | G11: 62 | H11: 21 | I11: 14 | J11: 11 | K11: 10 | L11: 45 | M11: 60
D12: 9 | E12: 7 | F12: 30 | G12: 69 | H12: 30 | I12: 17 | J12: 13 | K12: 10 | L12: 54 | M12: 70
D13: 9 | E13: 8 | F13: 35 | G13: 74 | H13: 40 | I13: 20 | J13: 15 | K13: 10 | L13: 63 | M13: 80
D14: 9 | E14: 9 | F14: 40 | G14: 78 | H14: 52 | I14: 23 | J14: 18 | K14: 10 | L14: 72 | M14: 90
D15: 9 | E15: 10 | F15: 45 | G15: 81 | H15: 63 | I15: 27 | J15: 21 | K15: 10 | L15: 81 | M15: 100
D16: 9 | E16: 11 | F16: 50 | G16: 84 | H16: 72 | I16: 33 | J16: 24 | K16: 10 | L16: 90 | M16: 110
D17: 9 | E17: 12 | F17: 55 | G17: 86 | H17: 78 | I17: 42 | J17: 27 | K17: 10 | L17: 99 | M17: 120
D18: 9 | E18: 13 | F18: 60 | G18: 88 | H18: 83 | I18: 55 | J18: 30 | K18: 10 | L18: 108 | M18: 130
D19: 9 | E19: 14 | F19: 65 | G19: 90 | H19: 87 | I19: 69 | J19: 34 | K19: 10 | L19: 117 | M19: 140
D20: 9 | E20: 15 | F20: 70 | G20: 92 | H20: 90 | I20: 79 | J20: 40 | K20: 10 | L20: 126 | M20: 150
D21: 9 | E21: 16 | F21: 75 | G21: 94 | H21: 92 | I21: 86 | J21: 47 | K21: 10 | L21: 135 | M21: 160
D22: 9 | E22: 17 | F22: 80 | G22: 95 | H22: 94 | I22: 91 | J22: 57 | K22: 10 | L22: 144 | M22: 170
D23: 9 | E23: 18 | F23: 85 | G23: 96 | H23: 96 | I23: 94 | J23: 74 | K23: 10 | L23: 153 | M23: 180
D24: 9 | E24: 19 | F24: 90 | G24: 97 | H24: 97 | I24: 96 | J24: 88 | K24: 10 | L24: 162
D25: 9 | E25: 20 | F25: 95 | G25: 98 | H25: 98 | I25: 98 | J25: 95 | K25: 10 | L25: 171
D26: 9 | E26: 21 | F26: 100 | G26: 100 | H26: 100 | I26: 100 | J26: 100 | K26: 10 | L26: 180

Sheet A50a400
A1: Table 1. Median Time Distributions of Heavy Storm Rainfall on Areas of 50 to 400 Square Miles
A2: Cumulative percent of storm rainfall for given storm type
A3: Cumulative percent of storm time | B3: First quartile | C3: Second quartile | D3: Third quartile | E3: Fourth quartile
A4: 0 | B4: 0 | C4: 0 | D4: 0 | E4: 0 | F4: 0 | G4: 0 | H4: 0 | I4: 0
A5: 5 | B5: 8 | C5: 2 | D5: 2 | E5: 2 | F5: =B5-B4 -> 8 | G5: =C5-C4 -> 2 | H5: 2 | I5: 2
A6: 10 | B6: 17 | C6: 4 | D6: 4 | E6: 3 | F6: =B6-B5 -> 9 | G6: 2 | H6: 2 | I6: 1
A7: 15 | B7: 34 | C7: 8 | D7: 7 | E7: 5 | F7: 17 | G7: 4 | H7: 3 | I7: 2
A8: 20 | B8: 50 | C8: 12 | D8: 10 | E8: 7 | F8: 16 | G8: 4 | H8: 3 | I8: 2
A9: 25 | B9: 63 | C9: 21 | D9: 12 | E9: 9 | F9: 13 | G9: 9 | H9: 2 | I9: 2
A10: 30 | B10: 71 | C10: 31 | D10: 14 | E10: 10 | F10: 8 | G10: 10 | H10: 2 | I10: 1
A11: 35 | B11: 76 | C11: 42 | D11: 16 | E11: 12 | F11: 5 | G11: 11 | H11: 2 | I11: 2
A12: 40 | B12: 80 | C12: 53 | D12: 19 | E12: 14 | F12: 4 | G12: 11 | H12: 3 | I12: 2
A13: 45 | B13: 83 | C13: 64 | D13: 22 | E13: 16 | F13: 3 | G13: 11 | H13: 3 | I13: 2
A14: 50 | B14: 86 | C14: 73 | D14: 29 | E14: 19 | F14: 3 | G14: 9 | H14: 7 | I14: 3
A15: 55 | B15: 88 | C15: 80 | D15: 39 | E15: 21 | F15: 2 | G15: 7 | H15: 10 | I15: 2
A16: 60 | B16: 90 | C16: 86 | D16: 54 | E16: 25 | F16: 2 | G16: 6 | H16: 15 | I16: 4
A17: 65 | B17: 92 | C17: 89 | D17: 68 | E17: 29 | F17: 2 | G17: 3 | H17: 14 | I17: 4
A18: 70 | B18: 93 | C18: 92 | D18: 79 | E18: 35 | F18: 1 | G18: 3 | H18: 11 | I18: 6
A19: 75 | B19: 95 | C19: 94 | D19: 87 | E19: 43 | F19: 2 | G19: 2 | H19: 8 | I19: 8
A20: 80 | B20: 96 | C20: 96 | D20: 92 | E20: 54 | F20: 1 | G20: 2 | H20: 5 | I20: 11
A21: 85 | B21: 97 | C21: 97 | D21: 95 | E21: 75 | F21: 1 | G21: 1 | H21: 3 | I21: 21
A22: 90 | B22: 98 | C22: 98 | D22: 97 | E22: 92 | F22: 1 | G22: 1 | H22: 2 | I22: 17
A23: 95 | B23: 99 | C23: 99 | D23: 99 | E23: 97 | F23: 1 | G23: 1 | H23: 2 | I23: 5
A24: 100 | B24: 100 | C24: 100 | D24: 100 | E24: 100 | F24: 1 | G24: 1 | H24: 1 | I24: 3
A27: Table 2. Median Time Distributions of Area1 Mean Rainfall in First-Quartile Storms at 10%, 50%, and 90% Probability Levels
A28: Cumulative percent of storm time | B28: Cumulative percent of storm rainfall for given storm probability
B29: 0.1 | C29: 0.5 | D29: 0.9
A30: 0 | B30: 0 | C30: 0 | D30: 0 | E30: 0 | F30: 0 | G30: 0
A31: 5 | B31: 24 | C31: 8 | D31: 2 | E31: =B31-B30 -> 24 | F31: =C31-C30 -> 8 | G31: 2
A32: 10 | B32: 50 | C32: 17 | D32: 4 | E32: =B32-B31 -> 26 | F32: =C32-C31 -> 9 | G32: =D32-D31 -> 2
A33: 15 | B33: 71 | C33: 34 | D33: 13 | E33: 21 | F33: 17 | G33: 9
A34: 20 | B34: 84 | C34: 50 | D34: 28 | E34: 13 | F34: 16 | G34: 15
A35: 25 | B35: 89 | C35: 63 | D35: 39 | E35: 5 | F35: 13 | G35: 11
A36: 30 | B36: 92 | C36: 71 | D36: 46 | E36: 3 | F36: 8 | G36: 7
A37: 35 | B37: 94 | C37: 76 | D37: 49 | E37: 2 | F37: 5 | G37: 3
A38: 40 | B38: 95 | C38: 80 | D38: 52 | E38: 1 | F38: 4 | G38: 3
A39: 45 | B39: 96 | C39: 83 | D39: 55 | E39: 1 | F39: 3 | G39: 3
A40: 50 | B40: 97 | C40: 86 | D40: 57 | E40: 1 | F40: 3 | G40: 2
A41: 55 | B41: 98 | C41: 88 | D41: 60 | E41: 1 | F41: 2 | G41: 3
A42: 60 | B42: 98 | C42: 90 | D42: 63 | E42: 0 | F42: 2 | G42: 3
A43: 65 | B43: 98 | C43: 92 | D43: 67 | E43: 0 | F43: 2 | G43: 4
A44: 70 | B44: 99 | C44: 93 | D44: 72 | E44: 1 | F44: 1 | G44: 5
A45: 75 | B45: 99 | C45: 95 | D45: 76 | E45: 0 | F45: 2 | G45: 4
A46: 80 | B46: 99 | C46: 96 | D46: 82 | E46: 0 | F46: 1 | G46: 6
A47: 85 | B47: 99 | C47: 97 | D47: 89 | E47: 0 | F47: 1 | G47: 7
A48: 90 | B48: 99 | C48: 98 | D48: 94 | E48: 0 | F48: 1 | G48: 5
A49: 95 | B49: 99 | C49: 99 | D49: 97 | E49: 0 | F49: 1 | G49: 3
A50: 100 | B50: 100 | C50: 100 | D50: 100 | E50: 1 | F50: 1 | G50: 3

Sheet Interpolação
A1: pontos na curva | B1: 21 | E1: delta T | F1: =(B1-1)/'Gerar Hietograma'!F2 -> 0.8333333333
B2: 0 | C2: ='Gerar Hietograma'!F3/'Gerar Hietograma'!F2*C3 -> 60 | D2: ='Gerar Hietograma'!$F$3/'Gerar Hietograma'!$F$2*D3 -> 120 | E2: ='Gerar Hietograma'!$F$3/'Gerar Hietograma'!$F$2*E3 -> 180 | F2: ='Gerar Hietograma'!$F$3/'Gerar Hietograma'!$F$2*F3 -> 240 | G2: ='Gerar Hietograma'!$F$3/'Gerar Hietograma'!$F$2*G3 -> 300 | H2: ='Gerar Hietograma'!$F$3/'Gerar Hietograma'!$F$2*H3 -> 360 | I2: ='Gerar Hietograma'!$F$3/'Gerar Hietograma'!$F$2*I3 -> 420 | J2: ='Gerar Hietograma'!$F$3/'Gerar Hietograma'!$F$2*J3 -> 480 | K2: ='Gerar Hietograma'!$F$3/'Gerar Hietograma'!$F$2*K3 -> 540 | L2: ='Gerar Hietograma'!$F$3/'Gerar Hietograma'!$F$2*L3 -> 600 | M2: ='Gerar Hietograma'!$F$3/'Gerar Hietograma'!$F$2*M3 -> 660 | N2: ='Gerar Hietograma'!$F$3/'Gerar Hietograma'!$F$2*N3 -> 720 | O2: ='Gerar Hietograma'!$F$3/'Gerar Hietograma'!$F$2*O3 -> 780 | P2: ='Gerar Hietograma'!$F$3/'Gerar Hietograma'!$F$2*P3 -> 840 | Q2: ='Gerar Hietograma'!$F$3/'Gerar Hietograma'!$F$2*Q3 -> 900 | R2: ='Gerar Hietograma'!$F$3/'Gerar Hietograma'!$F$2*R3 -> 960 | S2: ='Gerar Hietograma'!$F$3/'Gerar Hietograma'!$F$2*S3 -> 1020 | T2: ='Gerar Hietograma'!$F$3/'Gerar Hietograma'!$F$2*T3 -> 1080 | U2: ='Gerar Hietograma'!$F$3/'Gerar Hietograma'!$F$2*U3 -> 1140 | V2: ='Gerar Hietograma'!$F$3/'Gerar Hietograma'!$F$2*V3 -> 1200 | W2: ='Gerar Hietograma'!$F$3/'Gerar Hietograma'!$F$2*W3 -> 1260 | X2: ='Gerar Hietograma'!$F$3/'Gerar Hietograma'!$F$2*X3 -> 1320 | Y2: ='Gerar Hietograma'!$F$3/'Gerar Hietograma'!$F$2*Y3 -> 1380 | Z2: ='Gerar Hietograma'!$F$3/'Gerar Hietograma'!$F$2*Z3 -> 1440 | AA2: ='Gerar Hietograma'!$F$3/'Gerar Hietograma'!$F$2*AA3 -> 1500 | AB2: ='Gerar Hietograma'!$F$3/'Gerar Hietograma'!$F$2*AB3 -> 1560 | AC2: ='Gerar Hietograma'!$F$3/'Gerar Hietograma'!$F$2*AC3 -> 1620 | AD2: ='Gerar Hietograma'!$F$3/'Gerar Hietograma'!$F$2*AD3 -> 1680 | AE2: ='Gerar Hietograma'!$F$3/'Gerar Hietograma'!$F$2*AE3 -> 1740 | AF2: ='Gerar Hietograma'!$F$3/'Gerar Hietograma'!$F$2*AF3 -> 1800 | AG2: ='Gerar Hietograma'!$F$3/'Gerar Hietograma'!$F$2*AG3 -> 1860 | AH2: ='Gerar Hietograma'!$F$3/'Gerar Hietograma'!$F$2*AH3 -> 1920 | AI2: ='Gerar Hietograma'!$F$3/'Gerar Hietograma'!$F$2*AI3 -> 1980 | AJ2: ='Gerar Hietograma'!$F$3/'Gerar Hietograma'!$F$2*AJ3 -> 2040 | AK2: ='Gerar Hietograma'!$F$3/'Gerar Hietograma'!$F$2*AK3 -> 2100 | AL2: ='Gerar Hietograma'!$F$3/'Gerar Hietograma'!$F$2*AL3 -> 2160 | AM2: ='Gerar Hietograma'!$F$3/'Gerar Hietograma'!$F$2*AM3 -> 2220 | AN2: ='Gerar Hietograma'!$F$3/'Gerar Hietograma'!$F$2*AN3 -> 2280 | AO2: ='Gerar Hietograma'!$F$3/'Gerar Hietograma'!$F$2*AO3 -> 2340 | AP2: ='Gerar Hietograma'!$F$3/'Gerar Hietograma'!$F$2*AP3 -> 2400 | AQ2: ='Gerar Hietograma'!$F$3/'Gerar Hietograma'!$F$2*AQ3 -> 2460 | AR2: ='Gerar Hietograma'!$F$3/'Gerar Hietograma'!$F$2*AR3 -> 2520
A3: J | B3: 0 | C3: 1 | D3: 2 | E3: 3 | F3: 4 | G3: 5 | H3: 6 | I3: 7 | J3: 8 | K3: 9 | L3: 10 | M3: 11 | N3: 12 | O3: 13 | P3: 14 | Q3: 15 | R3: 16 | S3: 17 | T3: 18 | U3: 19 | V3: 20 | W3: 21 | X3: 22 | Y3: 23 | Z3: 24 | AA3: 25 | AB3: 26 | AC3: 27 | AD3: 28 | AE3: 29 | AF3: 30 | AG3: 31 | AH3: 32 | AI3: 33 | AJ3: 34 | AK3: 35 | AL3: 36 | AM3: 37 | AN3: 38 | AO3: 39 | AP3: 40 | AQ3: 41 | AR3: 42
A4: h | B4: 0 | C4: =C3*Interpolação!$F$1+1 -> 1.833333333 | D4: =D3*Interpolação!$F$1+1 -> 2.666666667 | E4: =E3*Interpolação!$F$1+1 -> 3.5 | F4: =F3*Interpolação!$F$1+1 -> 4.333333333 | G4: =G3*Interpolação!$F$1+1 -> 5.166666667 | H4: =H3*Interpolação!$F$1+1 -> 6 | I4: =I3*Interpolação!$F$1+1 -> 6.833333333 | J4: =J3*Interpolação!$F$1+1 -> 7.666666667 | K4: =K3*Interpolação!$F$1+1 -> 8.5 | L4: =L3*Interpolação!$F$1+1 -> 9.333333333 | M4: =M3*Interpolação!$F$1+1 -> 10.16666667 | N4: =N3*Interpolação!$F$1+1 -> 11 | O4: =O3*Interpolação!$F$1+1 -> 11.83333333 | P4: =P3*Interpolação!$F$1+1 -> 12.66666667 | Q4: =Q3*Interpolação!$F$1+1 -> 13.5 | R4: =R3*Interpolação!$F$1+1 -> 14.33333333 | S4: =S3*Interpolação!$F$1+1 -> 15.16666667 | T4: =T3*Interpolação!$F$1+1 -> 16 | U4: =U3*Interpolação!$F$1+1 -> 16.83333333 | V4: =V3*Interpolação!$F$1+1 -> 17.66666667 | W4: =W3*Interpolação!$F$1+1 -> 18.5 | X4: =X3*Interpolação!$F$1+1 -> 19.33333333 | Y4: =Y3*Interpolação!$F$1+1 -> 20.16666667 | Z4: =Z3*Interpolação!$F$1+1 -> 21 | AA4: =AA3*Interpolação!$F$1+1 -> 21.83333333 | AB4: =AB3*Interpolação!$F$1+1 -> 22.66666667 | AC4: =AC3*Interpolação!$F$1+1 -> 23.5 | AD4: =AD3*Interpolação!$F$1+1 -> 24.33333333 | AE4: =AE3*Interpolação!$F$1+1 -> 25.16666667 | AF4: =AF3*Interpolação!$F$1+1 -> 26 | AG4: =AG3*Interpolação!$F$1+1 -> 26.83333333 | AH4: =AH3*Interpolação!$F$1+1 -> 27.66666667 | AI4: =AI3*Interpolação!$F$1+1 -> 28.5 | AJ4: =AJ3*Interpolação!$F$1+1 -> 29.33333333 | AK4: =AK3*Interpolação!$F$1+1 -> 30.16666667 | AL4: =AL3*Interpolação!$F$1+1 -> 31 | AM4: =AM3*Interpolação!$F$1+1 -> 31.83333333 | AN4: =AN3*Interpolação!$F$1+1 -> 32.66666667 | AO4: =AO3*Interpolação!$F$1+1 -> 33.5 | AP4: =AP3*Interpolação!$F$1+1 -> 34.33333333 | AQ4: =AQ3*Interpolação!$F$1+1 -> 35.16666667 | AR4: =AR3*Interpolação!$F$1+1 -> 36
A5: m | B5: 0 | C5: =INT(C4) -> 1 | D5: 2 | E5: 3 | F5: 4 | G5: 5 | H5: 6 | I5: 6 | J5: 7 | K5: 8 | L5: 9 | M5: 10 | N5: 11 | O5: 11 | P5: 12 | Q5: 13 | R5: 14 | S5: 15 | T5: 16 | U5: 16 | V5: 17 | W5: 18 | X5: 19 | Y5: 20 | Z5: 21 | AA5: 21 | AB5: 22 | AC5: 23 | AD5: 24 | AE5: 25 | AF5: 26 | AG5: 26 | AH5: 27 | AI5: 28 | AJ5: 29 | AK5: 30 | AL5: 31 | AM5: 31 | AN5: 32 | AO5: 33 | AP5: 34 | AQ5: 35 | AR5: 36
A6: Pm | B6: 0 | C6: =VLOOKUP(C5,$F$12:$H$111,3,0) -> 0 | D6: 2.14 | E6: 4.28 | F6: 8.56 | G6: 12.84 | H6: 22.47 | I6: 22.47 | J6: 33.17 | K6: =VLOOKUP(K5,$F$12:$H$111,3,0) -> 44.94 | L6: 56.71 | M6: 68.48 | N6: 78.11 | O6: 78.11 | P6: 85.6 | Q6: 92.02 | R6: 95.23 | S6: 98.44 | T6: 100.58 | U6: 100.58 | V6: 102.72 | W6: 103.79 | X6: 104.86 | Y6: 105.93 | Z6: 107 | AA6: 107 | AB6: 0 | AC6: 0 | AD6: 0 | AE6: 0 | AF6: 0 | AG6: 0 | AH6: 0 | AI6: 0 | AJ6: 0 | AK6: 0 | AL6: 0 | AM6: 0 | AN6: 0 | AO6: 0 | AP6: 0 | AQ6: 0 | AR6: 0
A7: Pk+1 | B7: 0 | C7: =C6+((D6-C6)*(C4-C5)) -> 1.783333333 | D7: 3.566666667 | E7: 6.42 | F7: 9.986666667 | G7: 14.445 | H7: 22.47 | I7: 31.38666667 | J7: 41.01666667 | K7: 50.825 | L7: 60.63333333 | M7: 70.085 | N7: 78.11 | O7: 84.35166667 | P7: 89.88 | Q7: 93.625 | R7: 96.3 | S7: 98.79666667 | T7: 100.58 | U7: 102.3633333 | V7: 103.4333333 | W7: 104.325 | X7: 105.2166667 | Y7: 106.1083333 | Z7: 107 | AA7: 17.83333333 | AB7: 0 | AC7: 0 | AD7: 0 | AE7: 0 | AF7: 0 | AG7: 0 | AH7: 0 | AI7: 0 | AJ7: 0 | AK7: 0 | AL7: 0 | AM7: 0 | AN7: 0 | AO7: 0 | AP7: 0 | AQ7: 0 | AR7: =AR6+((AW3-AR6)*(AR4-AR5)) -> 0
A11: t/td | B11: 1st | C11: 2nd | D11: 3rd | E11: 4th | G11: T | H11: P | I11: P Inter | J11: T | K11: Hietograma
A12: 0 | B12: =IF('Gerar Hietograma'!$E$6=1,Ponto!B3,IF('Gerar Hietograma'!$E$6=2,A10a50!B4,IF('Gerar Hietograma'!$E$6=3,A50a400!B4))) -> 0 | C12: =IF('Gerar Hietograma'!$E$6=1,Ponto!C3,IF('Gerar Hietograma'!$E$6=2,A10a50!C4,IF('Gerar Hietograma'!$E$6=3,A50a400!C4))) -> 0 | D12: =IF('Gerar Hietograma'!$E$6=1,Ponto!D3,IF('Gerar Hietograma'!$E$6=2,A10a50!D4,IF('Gerar Hietograma'!$E$6=3,A50a400!D4))) -> 0 | E12: =IF('Gerar Hietograma'!$E$6=1,Ponto!E3,IF('Gerar Hietograma'!$E$6=2,A10a50!E4,IF('Gerar Hietograma'!$E$6=3,A50a400!E4))) -> 0 | F12: 1 | G12: =A12*'Gerar Hietograma'!$F$3 -> 0 | H12: =IF('Gerar Hietograma'!$E$5=1,'Gerar Hietograma'!$F$4/100*B12,IF('Gerar Hietograma'!$E$5=2,'Gerar Hietograma'!$F$4/100*C12,IF('Gerar Hietograma'!$E$5=3,'Gerar Hietograma'!$F$4/100*D12,IF('Gerar Hietograma'!$E$5=4,'Gerar Hietograma'!$F$4/100*E12,0)))) -> 0 | I12: =B$7 -> 0 | J12: 0 | K12: =0 -> 0 | M12: =H12 -> 0 | N12: 0
A13: 0.05 | B13: =IF('Gerar Hietograma'!$E$6=1,Ponto!B4,IF('Gerar Hietograma'!$E$6=2,A10a50!B5,IF('Gerar Hietograma'!$E$6=3,A50a400!B5))) -> 8 | C13: =IF('Gerar Hietograma'!$E$6=1,Ponto!C4,IF('Gerar Hietograma'!$E$6=2,A10a50!C5,IF('Gerar Hietograma'!$E$6=3,A50a400!C5))) -> 2 | D13: =IF('Gerar Hietograma'!$E$6=1,Ponto!D4,IF('Gerar Hietograma'!$E$6=2,A10a50!D5,IF('Gerar Hietograma'!$E$6=3,A50a400!D5))) -> 2 | E13: =IF('Gerar Hietograma'!$E$6=1,Ponto!E4,IF('Gerar Hietograma'!$E$6=2,A10a50!E5,IF('Gerar Hietograma'!$E$6=3,A50a400!E5))) -> 2 | F13: 2 | G13: =A13*'Gerar Hietograma'!$F$3 -> 72 | H13: =IF('Gerar Hietograma'!$E$5=1,'Gerar Hietograma'!$F$4/100*B13,IF('Gerar Hietograma'!$E$5=2,'Gerar Hietograma'!$F$4/100*C13,IF('Gerar Hietograma'!$E$5=3,'Gerar Hietograma'!$F$4/100*D13,IF('Gerar Hietograma'!$E$5=4,'Gerar Hietograma'!$F$4/100*E13,0)))) -> 2.14 | I13: =C6+((D6-C6)*(C4-C5)) -> 1.783333333 | J13: ='Gerar Hietograma'!$F$3/'Gerar Hietograma'!$F$2*F12 -> 60 | K13: =I13-I12 -> 1.783333333 | M13: =InterpolacaoLinear(J13,$G$12:$G$32,$H$12:$H$32) -> 1.783333333 | N13: =M13-M12 -> 1.783333333
A14: 0.1 | B14: =IF('Gerar Hietograma'!$E$6=1,Ponto!B5,IF('Gerar Hietograma'!$E$6=2,A10a50!B6,IF('Gerar Hietograma'!$E$6=3,A50a400!B6))) -> 17 | C14: =IF('Gerar Hietograma'!$E$6=1,Ponto!C5,IF('Gerar Hietograma'!$E$6=2,A10a50!C6,IF('Gerar Hietograma'!$E$6=3,A50a400!C6))) -> 4 | D14: =IF('Gerar Hietograma'!$E$6=1,Ponto!D5,IF('Gerar Hietograma'!$E$6=2,A10a50!D6,IF('Gerar Hietograma'!$E$6=3,A50a400!D6))) -> 4 | E14: =IF('Gerar Hietograma'!$E$6=1,Ponto!E5,IF('Gerar Hietograma'!$E$6=2,A10a50!E6,IF('Gerar Hietograma'!$E$6=3,A50a400!E6))) -> 3 | F14: 3 | G14: =A14*'Gerar Hietograma'!$F$3 -> 144 | H14: =IF('Gerar Hietograma'!$E$5=1,'Gerar Hietograma'!$F$4/100*B14,IF('Gerar Hietograma'!$E$5=2,'Gerar Hietograma'!$F$4/100*C14,IF('Gerar Hietograma'!$E$5=3,'Gerar Hietograma'!$F$4/100*D14,IF('Gerar Hietograma'!$E$5=4,'Gerar Hietograma'!$F$4/100*E14,0)))) -> 4.28 | I14: =D6+((E6-D6)*(D4-D5)) -> 3.566666667 | J14: ='Gerar Hietograma'!$F$3/'Gerar Hietograma'!$F$2*F13 -> 120 | K14: =I14-I13 -> 1.783333333 | M14: =InterpolacaoLinear(J14,$G$12:$G$32,$H$12:$H$32) -> 3.566666667 | N14: =M14-M13 -> 1.783333333
A15: 0.15 | B15: =IF('Gerar Hietograma'!$E$6=1,Ponto!B6,IF('Gerar Hietograma'!$E$6=2,A10a50!B7,IF('Gerar Hietograma'!$E$6=3,A50a400!B7))) -> 34 | C15: =IF('Gerar Hietograma'!$E$6=1,Ponto!C6,IF('Gerar Hietograma'!$E$6=2,A10a50!C7,IF('Gerar Hietograma'!$E$6=3,A50a400!C7))) -> 8 | D15: =IF('Gerar Hietograma'!$E$6=1,Ponto!D6,IF('Gerar Hietograma'!$E$6=2,A10a50!D7,IF('Gerar Hietograma'!$E$6=3,A50a400!D7))) -> 7 | E15: =IF('Gerar Hietograma'!$E$6=1,Ponto!E6,IF('Gerar Hietograma'!$E$6=2,A10a50!E7,IF('Gerar Hietograma'!$E$6=3,A50a400!E7))) -> 5 | F15: 4 | G15: =A15*'Gerar Hietograma'!$F$3 -> 216 | H15: =IF('Gerar Hietograma'!$E$5=1,'Gerar Hietograma'!$F$4/100*B15,IF('Gerar Hietograma'!$E$5=2,'Gerar Hietograma'!$F$4/100*C15,IF('Gerar Hietograma'!$E$5=3,'Gerar Hietograma'!$F$4/100*D15,IF('Gerar Hietograma'!$E$5=4,'Gerar Hietograma'!$F$4/100*E15,0)))) -> 8.56 | I15: =E6+((F6-E6)*(E4-E5)) -> 6.42 | J15: ='Gerar Hietograma'!$F$3/'Gerar Hietograma'!$F$2*F14 -> 180 | K15: 2.853333333 | M15: =InterpolacaoLinear(J15,$G$12:$G$32,$H$12:$H$32) -> 6.42 | N15: 2.853333333
A16: 0.2 | B16: =IF('Gerar Hietograma'!$E$6=1,Ponto!B7,IF('Gerar Hietograma'!$E$6=2,A10a50!B8,IF('Gerar Hietograma'!$E$6=3,A50a400!B8))) -> 50 | C16: =IF('Gerar Hietograma'!$E$6=1,Ponto!C7,IF('Gerar Hietograma'!$E$6=2,A10a50!C8,IF('Gerar Hietograma'!$E$6=3,A50a400!C8))) -> 12 | D16: =IF('Gerar Hietograma'!$E$6=1,Ponto!D7,IF('Gerar Hietograma'!$E$6=2,A10a50!D8,IF('Gerar Hietograma'!$E$6=3,A50a400!D8))) -> 10 | E16: =IF('Gerar Hietograma'!$E$6=1,Ponto!E7,IF('Gerar Hietograma'!$E$6=2,A10a50!E8,IF('Gerar Hietograma'!$E$6=3,A50a400!E8))) -> 7 | F16: 5 | G16: =A16*'Gerar Hietograma'!$F$3 -> 288 | H16: =IF('Gerar Hietograma'!$E$5=1,'Gerar Hietograma'!$F$4/100*B16,IF('Gerar Hietograma'!$E$5=2,'Gerar Hietograma'!$F$4/100*C16,IF('Gerar Hietograma'!$E$5=3,'Gerar Hietograma'!$F$4/100*D16,IF('Gerar Hietograma'!$E$5=4,'Gerar Hietograma'!$F$4/100*E16,0)))) -> 12.84 | I16: =F6+((G6-F6)*(F4-F5)) -> 9.986666667 | J16: ='Gerar Hietograma'!$F$3/'Gerar Hietograma'!$F$2*F15 -> 240 | K16: 3.566666667 | M16: =InterpolacaoLinear(J16,$G$12:$G$32,$H$12:$H$32) -> 9.986666667 | N16: 3.566666667
A17: 0.25 | B17: =IF('Gerar Hietograma'!$E$6=1,Ponto!B8,IF('Gerar Hietograma'!$E$6=2,A10a50!B9,IF('Gerar Hietograma'!$E$6=3,A50a400!B9))) -> 63 | C17: =IF('Gerar Hietograma'!$E$6=1,Ponto!C8,IF('Gerar Hietograma'!$E$6=2,A10a50!C9,IF('Gerar Hietograma'!$E$6=3,A50a400!C9))) -> 21 | D17: =IF('Gerar Hietograma'!$E$6=1,Ponto!D8,IF('Gerar Hietograma'!$E$6=2,A10a50!D9,IF('Gerar Hietograma'!$E$6=3,A50a400!D9))) -> 12 | E17: =IF('Gerar Hietograma'!$E$6=1,Ponto!E8,IF('Gerar Hietograma'!$E$6=2,A10a50!E9,IF('Gerar Hietograma'!$E$6=3,A50a400!E9))) -> 9 | F17: 6 | G17: =A17*'Gerar Hietograma'!$F$3 -> 360 | H17: =IF('Gerar Hietograma'!$E$5=1,'Gerar Hietograma'!$F$4/100*B17,IF('Gerar Hietograma'!$E$5=2,'Gerar Hietograma'!$F$4/100*C17,IF('Gerar Hietograma'!$E$5=3,'Gerar Hietograma'!$F$4/100*D17,IF('Gerar Hietograma'!$E$5=4,'Gerar Hietograma'!$F$4/100*E17,0)))) -> 22.47 | I17: =G6+((H6-G6)*(G4-G5)) -> 14.445 | J17: ='Gerar Hietograma'!$F$3/'Gerar Hietograma'!$F$2*F16 -> 300 | K17: 4.458333333 | M17: =InterpolacaoLinear(J17,$G$12:$G$32,$H$12:$H$32) -> 14.445 | N17: 4.458333333
A18: 0.3 | B18: =IF('Gerar Hietograma'!$E$6=1,Ponto!B9,IF('Gerar Hietograma'!$E$6=2,A10a50!B10,IF('Gerar Hietograma'!$E$6=3,A50a400!B10))) -> 71 | C18: =IF('Gerar Hietograma'!$E$6=1,Ponto!C9,IF('Gerar Hietograma'!$E$6=2,A10a50!C10,IF('Gerar Hietograma'!$E$6=3,A50a400!C10))) -> 31 | D18: =IF('Gerar Hietograma'!$E$6=1,Ponto!D9,IF('Gerar Hietograma'!$E$6=2,A10a50!D10,IF('Gerar Hietograma'!$E$6=3,A50a400!D10))) -> 14 | E18: =IF('Gerar Hietograma'!$E$6=1,Ponto!E9,IF('Gerar Hietograma'!$E$6=2,A10a50!E10,IF('Gerar Hietograma'!$E$6=3,A50a400!E10))) -> 10 | F18: 7 | G18: =A18*'Gerar Hietograma'!$F$3 -> 432 | H18: =IF('Gerar Hietograma'!$E$5=1,'Gerar Hietograma'!$F$4/100*B18,IF('Gerar Hietograma'!$E$5=2,'Gerar Hietograma'!$F$4/100*C18,IF('Gerar Hietograma'!$E$5=3,'Gerar Hietograma'!$F$4/100*D18,IF('Gerar Hietograma'!$E$5=4,'Gerar Hietograma'!$F$4/100*E18,0)))) -> 33.17 | I18: =H6+((I6-H6)*(H4-H5)) -> 22.47 | J18: ='Gerar Hietograma'!$F$3/'Gerar Hietograma'!$F$2*F17 -> 360 | K18: 8.025 | M18: =InterpolacaoLinear(J18,$G$12:$G$32,$H$12:$H$32) -> 22.47 | N18: 8.025
A19: 0.35 | B19: =IF('Gerar Hietograma'!$E$6=1,Ponto!B10,IF('Gerar Hietograma'!$E$6=2,A10a50!B11,IF('Gerar Hietograma'!$E$6=3,A50a400!B11))) -> 76 | C19: =IF('Gerar Hietograma'!$E$6=1,Ponto!C10,IF('Gerar Hietograma'!$E$6=2,A10a50!C11,IF('Gerar Hietograma'!$E$6=3,A50a400!C11))) -> 42 | D19: =IF('Gerar Hietograma'!$E$6=1,Ponto!D10,IF('Gerar Hietograma'!$E$6=2,A10a50!D11,IF('Gerar Hietograma'!$E$6=3,A50a400!D11))) -> 16 | E19: =IF('Gerar Hietograma'!$E$6=1,Ponto!E10,IF('Gerar Hietograma'!$E$6=2,A10a50!E11,IF('Gerar Hietograma'!$E$6=3,A50a400!E11))) -> 12 | F19: 8 | G19: =A19*'Gerar Hietograma'!$F$3 -> 504 | H19: =IF('Gerar Hietograma'!$E$5=1,'Gerar Hietograma'!$F$4/100*B19,IF('Gerar Hietograma'!$E$5=2,'Gerar Hietograma'!$F$4/100*C19,IF('Gerar Hietograma'!$E$5=3,'Gerar Hietograma'!$F$4/100*D19,IF('Gerar Hietograma'!$E$5=4,'Gerar Hietograma'!$F$4/100*E19,0)))) -> 44.94 | I19: =I6+((J6-I6)*(I4-I5)) -> 31.38666667 | J19: ='Gerar Hietograma'!$F$3/'Gerar Hietograma'!$F$2*F18 -> 420 | K19: 8.916666667 | M19: =InterpolacaoLinear(J19,$G$12:$G$32,$H$12:$H$32) -> 31.38666667 | N19: 8.916666667
A20: 0.4 | B20: =IF('Gerar Hietograma'!$E$6=1,Ponto!B11,IF('Gerar Hietograma'!$E$6=2,A10a50!B12,IF('Gerar Hietograma'!$E$6=3,A50a400!B12))) -> 80 | C20: =IF('Gerar Hietograma'!$E$6=1,Ponto!C11,IF('Gerar Hietograma'!$E$6=2,A10a50!C12,IF('Gerar Hietograma'!$E$6=3,A50a400!C12))) -> 53 | D20: =IF('Gerar Hietograma'!$E$6=1,Ponto!D11,IF('Gerar Hietograma'!$E$6=2,A10a50!D12,IF('Gerar Hietograma'!$E$6=3,A50a400!D12))) -> 19 | E20: =IF('Gerar Hietograma'!$E$6=1,Ponto!E11,IF('Gerar Hietograma'!$E$6=2,A10a50!E12,IF('Gerar Hietograma'!$E$6=3,A50a400!E12))) -> 14 | F20: 9 | G20: =A20*'Gerar Hietograma'!$F$3 -> 576 | H20: =IF('Gerar Hietograma'!$E$5=1,'Gerar Hietograma'!$F$4/100*B20,IF('Gerar Hietograma'!$E$5=2,'Gerar Hietograma'!$F$4/100*C20,IF('Gerar Hietograma'!$E$5=3,'Gerar Hietograma'!$F$4/100*D20,IF('Gerar Hietograma'!$E$5=4,'Gerar Hietograma'!$F$4/100*E20,0)))) -> 56.71 | I20: =J6+((K6-J6)*(J4-J5)) -> 41.01666667 | J20: ='Gerar Hietograma'!$F$3/'Gerar Hietograma'!$F$2*F19 -> 480 | K20: 9.63 | M20: =InterpolacaoLinear(J20,$G$12:$G$32,$H$12:$H$32) -> 41.01666667 | N20: 9.63
A21: 0.45 | B21: =IF('Gerar Hietograma'!$E$6=1,Ponto!B12,IF('Gerar Hietograma'!$E$6=2,A10a50!B13,IF('Gerar Hietograma'!$E$6=3,A50a400!B13))) -> 83 | C21: =IF('Gerar Hietograma'!$E$6=1,Ponto!C12,IF('Gerar Hietograma'!$E$6=2,A10a50!C13,IF('Gerar Hietograma'!$E$6=3,A50a400!C13))) -> 64 | D21: =IF('Gerar Hietograma'!$E$6=1,Ponto!D12,IF('Gerar Hietograma'!$E$6=2,A10a50!D13,IF('Gerar Hietograma'!$E$6=3,A50a400!D13))) -> 22 | E21: =IF('Gerar Hietograma'!$E$6=1,Ponto!E12,IF('Gerar Hietograma'!$E$6=2,A10a50!E13,IF('Gerar Hietograma'!$E$6=3,A50a400!E13))) -> 16 | F21: 10 | G21: =A21*'Gerar Hietograma'!$F$3 -> 648 | H21: =IF('Gerar Hietograma'!$E$5=1,'Gerar Hietograma'!$F$4/100*B21,IF('Gerar Hietograma'!$E$5=2,'Gerar Hietograma'!$F$4/100*C21,IF('Gerar Hietograma'!$E$5=3,'Gerar Hietograma'!$F$4/100*D21,IF('Gerar Hietograma'!$E$5=4,'Gerar Hietograma'!$F$4/100*E21,0)))) -> 68.48 | I21: =K6+((L6-K6)*(K4-K5)) -> 50.825 | J21: ='Gerar Hietograma'!$F$3/'Gerar Hietograma'!$F$2*F20 -> 540 | K21: 9.808333333 | M21: =InterpolacaoLinear(J21,$G$12:$G$32,$H$12:$H$32) -> 50.825 | N21: 9.808333333
A22: 0.5 | B22: =IF('Gerar Hietograma'!$E$6=1,Ponto!B13,IF('Gerar Hietograma'!$E$6=2,A10a50!B14,IF('Gerar Hietograma'!$E$6=3,A50a400!B14))) -> 86 | C22: =IF('Gerar Hietograma'!$E$6=1,Ponto!C13,IF('Gerar Hietograma'!$E$6=2,A10a50!C14,IF('Gerar Hietograma'!$E$6=3,A50a400!C14))) -> 73 | D22: =IF('Gerar Hietograma'!$E$6=1,Ponto!D13,IF('Gerar Hietograma'!$E$6=2,A10a50!D14,IF('Gerar Hietograma'!$E$6=3,A50a400!D14))) -> 29 | E22: =IF('Gerar Hietograma'!$E$6=1,Ponto!E13,IF('Gerar Hietograma'!$E$6=2,A10a50!E14,IF('Gerar Hietograma'!$E$6=3,A50a400!E14))) -> 19 | F22: 11 | G22: =A22*'Gerar Hietograma'!$F$3 -> 720 | H22: =IF('Gerar Hietograma'!$E$5=1,'Gerar Hietograma'!$F$4/100*B22,IF('Gerar Hietograma'!$E$5=2,'Gerar Hietograma'!$F$4/100*C22,IF('Gerar Hietograma'!$E$5=3,'Gerar Hietograma'!$F$4/100*D22,IF('Gerar Hietograma'!$E$5=4,'Gerar Hietograma'!$F$4/100*E22,0)))) -> 78.11 | I22: =L6+((M6-L6)*(L4-L5)) -> 60.63333333 | J22: ='Gerar Hietograma'!$F$3/'Gerar Hietograma'!$F$2*F21 -> 600 | K22: 9.808333333 | M22: =InterpolacaoLinear(J22,$G$12:$G$32,$H$12:$H$32) -> 60.63333333 | N22: 9.808333333
A23: 0.55 | B23: =IF('Gerar Hietograma'!$E$6=1,Ponto!B14,IF('Gerar Hietograma'!$E$6=2,A10a50!B15,IF('Gerar Hietograma'!$E$6=3,A50a400!B15))) -> 88 | C23: =IF('Gerar Hietograma'!$E$6=1,Ponto!C14,IF('Gerar Hietograma'!$E$6=2,A10a50!C15,IF('Gerar Hietograma'!$E$6=3,A50a400!C15))) -> 80 | D23: =IF('Gerar Hietograma'!$E$6=1,Ponto!D14,IF('Gerar Hietograma'!$E$6=2,A10a50!D15,IF('Gerar Hietograma'!$E$6=3,A50a400!D15))) -> 39 | E23: =IF('Gerar Hietograma'!$E$6=1,Ponto!E14,IF('Gerar Hietograma'!$E$6=2,A10a50!E15,IF('Gerar Hietograma'!$E$6=3,A50a400!E15))) -> 21 | F23: 12 | G23: =A23*'Gerar Hietograma'!$F$3 -> 792 | H23: =IF('Gerar Hietograma'!$E$5=1,'Gerar Hietograma'!$F$4/100*B23,IF('Gerar Hietograma'!$E$5=2,'Gerar Hietograma'!$F$4/100*C23,IF('Gerar Hietograma'!$E$5=3,'Gerar Hietograma'!$F$4/100*D23,IF('Gerar Hietograma'!$E$5=4,'Gerar Hietograma'!$F$4/100*E23,0)))) -> 85.6 | I23: =M6+((N6-M6)*(M4-M5)) -> 70.085 | J23: ='Gerar Hietograma'!$F$3/'Gerar Hietograma'!$F$2*F22 -> 660 | K23: 9.451666667 | M23: =InterpolacaoLinear(J23,$G$12:$G$32,$H$12:$H$32) -> 70.085 | N23: 9.451666667
A24: 0.6 | B24: =IF('Gerar Hietograma'!$E$6=1,Ponto!B15,IF('Gerar Hietograma'!$E$6=2,A10a50!B16,IF('Gerar Hietograma'!$E$6=3,A50a400!B16))) -> 90 | C24: =IF('Gerar Hietograma'!$E$6=1,Ponto!C15,IF('Gerar Hietograma'!$E$6=2,A10a50!C16,IF('Gerar Hietograma'!$E$6=3,A50a400!C16))) -> 86 | D24: =IF('Gerar Hietograma'!$E$6=1,Ponto!D15,IF('Gerar Hietograma'!$E$6=2,A10a50!D16,IF('Gerar Hietograma'!$E$6=3,A50a400!D16))) -> 54 | E24: =IF('Gerar Hietograma'!$E$6=1,Ponto!E15,IF('Gerar Hietograma'!$E$6=2,A10a50!E16,IF('Gerar Hietograma'!$E$6=3,A50a400!E16))) -> 25 | F24: 13 | G24: =A24*'Gerar Hietograma'!$F$3 -> 864 | H24: =IF('Gerar Hietograma'!$E$5=1,'Gerar Hietograma'!$F$4/100*B24,IF('Gerar Hietograma'!$E$5=2,'Gerar Hietograma'!$F$4/100*C24,IF('Gerar Hietograma'!$E$5=3,'Gerar Hietograma'!$F$4/100*D24,IF('Gerar Hietograma'!$E$5=4,'Gerar Hietograma'!$F$4/100*E24,0)))) -> 92.02 | I24: =N6+((O6-N6)*(N4-N5)) -> 78.11 | J24: ='Gerar Hietograma'!$F$3/'Gerar Hietograma'!$F$2*F23 -> 720 | K24: 8.025 | M24: =InterpolacaoLinear(J24,$G$12:$G$32,$H$12:$H$32) -> 78.11 | N24: 8.025
A25: 0.65 | B25: =IF('Gerar Hietograma'!$E$6=1,Ponto!B16,IF('Gerar Hietograma'!$E$6=2,A10a50!B17,IF('Gerar Hietograma'!$E$6=3,A50a400!B17))) -> 92 | C25: =IF('Gerar Hietograma'!$E$6=1,Ponto!C16,IF('Gerar Hietograma'!$E$6=2,A10a50!C17,IF('Gerar Hietograma'!$E$6=3,A50a400!C17))) -> 89 | D25: =IF('Gerar Hietograma'!$E$6=1,Ponto!D16,IF('Gerar Hietograma'!$E$6=2,A10a50!D17,IF('Gerar Hietograma'!$E$6=3,A50a400!D17))) -> 68 | E25: =IF('Gerar Hietograma'!$E$6=1,Ponto!E16,IF('Gerar Hietograma'!$E$6=2,A10a50!E17,IF('Gerar Hietograma'!$E$6=3,A50a400!E17))) -> 29 | F25: 14 | G25: =A25*'Gerar Hietograma'!$F$3 -> 936 | H25: =IF('Gerar Hietograma'!$E$5=1,'Gerar Hietograma'!$F$4/100*B25,IF('Gerar Hietograma'!$E$5=2,'Gerar Hietograma'!$F$4/100*C25,IF('Gerar Hietograma'!$E$5=3,'Gerar Hietograma'!$F$4/100*D25,IF('Gerar Hietograma'!$E$5=4,'Gerar Hietograma'!$F$4/100*E25,0)))) -> 95.23 | I25: =O6+((P6-O6)*(O4-O5)) -> 84.35166667 | J25: ='Gerar Hietograma'!$F$3/'Gerar Hietograma'!$F$2*F24 -> 780 | K25: 6.241666667 | M25: =InterpolacaoLinear(J25,$G$12:$G$32,$H$12:$H$32) -> 84.35166667 | N25: 6.241666667
A26: 0.7 | B26: =IF('Gerar Hietograma'!$E$6=1,Ponto!B17,IF('Gerar Hietograma'!$E$6=2,A10a50!B18,IF('Gerar Hietograma'!$E$6=3,A50a400!B18))) -> 93 | C26: =IF('Gerar Hietograma'!$E$6=1,Ponto!C17,IF('Gerar Hietograma'!$E$6=2,A10a50!C18,IF('Gerar Hietograma'!$E$6=3,A50a400!C18))) -> 92 | D26: =IF('Gerar Hietograma'!$E$6=1,Ponto!D17,IF('Gerar Hietograma'!$E$6=2,A10a50!D18,IF('Gerar Hietograma'!$E$6=3,A50a400!D18))) -> 79 | E26: =IF('Gerar Hietograma'!$E$6=1,Ponto!E17,IF('Gerar Hietograma'!$E$6=2,A10a50!E18,IF('Gerar Hietograma'!$E$6=3,A50a400!E18))) -> 35 | F26: 15 | G26: =A26*'Gerar Hietograma'!$F$3 -> 1008 | H26: =IF('Gerar Hietograma'!$E$5=1,'Gerar Hietograma'!$F$4/100*B26,IF('Gerar Hietograma'!$E$5=2,'Gerar Hietograma'!$F$4/100*C26,IF('Gerar Hietograma'!$E$5=3,'Gerar Hietograma'!$F$4/100*D26,IF('Gerar Hietograma'!$E$5=4,'Gerar Hietograma'!$F$4/100*E26,0)))) -> 98.44 | I26: =P6+((Q6-P6)*(P4-P5)) -> 89.88 | J26: ='Gerar Hietograma'!$F$3/'Gerar Hietograma'!$F$2*F25 -> 840 | K26: 5.528333333 | M26: =InterpolacaoLinear(J26,$G$12:$G$32,$H$12:$H$32) -> 89.88 | N26: 5.528333333
A27: 0.75 | B27: =IF('Gerar Hietograma'!$E$6=1,Ponto!B18,IF('Gerar Hietograma'!$E$6=2,A10a50!B19,IF('Gerar Hietograma'!$E$6=3,A50a400!B19))) -> 95 | C27: =IF('Gerar Hietograma'!$E$6=1,Ponto!C18,IF('Gerar Hietograma'!$E$6=2,A10a50!C19,IF('Gerar Hietograma'!$E$6=3,A50a400!C19))) -> 94 | D27: =IF('Gerar Hietograma'!$E$6=1,Ponto!D18,IF('Gerar Hietograma'!$E$6=2,A10a50!D19,IF('Gerar Hietograma'!$E$6=3,A50a400!D19))) -> 87 | E27: =IF('Gerar Hietograma'!$E$6=1,Ponto!E18,IF('Gerar Hietograma'!$E$6=2,A10a50!E19,IF('Gerar Hietograma'!$E$6=3,A50a400!E19))) -> 43 | F27: 16 | G27: =A27*'Gerar Hietograma'!$F$3 -> 1080 | H27: =IF('Gerar Hietograma'!$E$5=1,'Gerar Hietograma'!$F$4/100*B27,IF('Gerar Hietograma'!$E$5=2,'Gerar Hietograma'!$F$4/100*C27,IF('Gerar Hietograma'!$E$5=3,'Gerar Hietograma'!$F$4/100*D27,IF('Gerar Hietograma'!$E$5=4,'Gerar Hietograma'!$F$4/100*E27,0)))) -> 100.58 | I27: =Q6+((R6-Q6)*(Q4-Q5)) -> 93.625 | J27: ='Gerar Hietograma'!$F$3/'Gerar Hietograma'!$F$2*F26 -> 900 | K27: 3.745 | M27: =InterpolacaoLinear(J27,$G$12:$G$32,$H$12:$H$32) -> 93.625 | N27: 3.745
A28: 0.8 | B28: =IF('Gerar Hietograma'!$E$6=1,Ponto!B19,IF('Gerar Hietograma'!$E$6=2,A10a50!B20,IF('Gerar Hietograma'!$E$6=3,A50a400!B20))) -> 96 | C28: =IF('Gerar Hietograma'!$E$6=1,Ponto!C19,IF('Gerar Hietograma'!$E$6=2,A10a50!C20,IF('Gerar Hietograma'!$E$6=3,A50a400!C20))) -> 96 | D28: =IF('Gerar Hietograma'!$E$6=1,Ponto!D19,IF('Gerar Hietograma'!$E$6=2,A10a50!D20,IF('Gerar Hietograma'!$E$6=3,A50a400!D20))) -> 92 | E28: =IF('Gerar Hietograma'!$E$6=1,Ponto!E19,IF('Gerar Hietograma'!$E$6=2,A10a50!E20,IF('Gerar Hietograma'!$E$6=3,A50a400!E20))) -> 54 | F28: 17 | G28: =A28*'Gerar Hietograma'!$F$3 -> 1152 | H28: =IF('Gerar Hietograma'!$E$5=1,'Gerar Hietograma'!$F$4/100*B28,IF('Gerar Hietograma'!$E$5=2,'Gerar Hietograma'!$F$4/100*C28,IF('Gerar Hietograma'!$E$5=3,'Gerar Hietograma'!$F$4/100*D28,IF('Gerar Hietograma'!$E$5=4,'Gerar Hietograma'!$F$4/100*E28,0)))) -> 102.72 | I28: =R6+((S6-R6)*(R4-R5)) -> 96.3 | J28: ='Gerar Hietograma'!$F$3/'Gerar Hietograma'!$F$2*F27 -> 960 | K28: 2.675 | M28: =InterpolacaoLinear(J28,$G$12:$G$32,$H$12:$H$32) -> 96.3 | N28: 2.675
A29: 0.85 | B29: =IF('Gerar Hietograma'!$E$6=1,Ponto!B20,IF('Gerar Hietograma'!$E$6=2,A10a50!B21,IF('Gerar Hietograma'!$E$6=3,A50a400!B21))) -> 97 | C29: =IF('Gerar Hietograma'!$E$6=1,Ponto!C20,IF('Gerar Hietograma'!$E$6=2,A10a50!C21,IF('Gerar Hietograma'!$E$6=3,A50a400!C21))) -> 97 | D29: =IF('Gerar Hietograma'!$E$6=1,Ponto!D20,IF('Gerar Hietograma'!$E$6=2,A10a50!D21,IF('Gerar Hietograma'!$E$6=3,A50a400!D21))) -> 95 | E29: =IF('Gerar Hietograma'!$E$6=1,Ponto!E20,IF('Gerar Hietograma'!$E$6=2,A10a50!E21,IF('Gerar Hietograma'!$E$6=3,A50a400!E21))) -> 75 | F29: 18 | G29: =A29*'Gerar Hietograma'!$F$3 -> 1224 | H29: =IF('Gerar Hietograma'!$E$5=1,'Gerar Hietograma'!$F$4/100*B29,IF('Gerar Hietograma'!$E$5=2,'Gerar Hietograma'!$F$4/100*C29,IF('Gerar Hietograma'!$E$5=3,'Gerar Hietograma'!$F$4/100*D29,IF('Gerar Hietograma'!$E$5=4,'Gerar Hietograma'!$F$4/100*E29,0)))) -> 103.79 | I29: =S6+((T6-S6)*(S4-S5)) -> 98.79666667 | J29: ='Gerar Hietograma'!$F$3/'Gerar Hietograma'!$F$2*F28 -> 1020 | K29: 2.496666667 | M29: =InterpolacaoLinear(J29,$G$12:$G$32,$H$12:$H$32) -> 98.79666667 | N29: 2.496666667
A30: 0.9 | B30: =IF('Gerar Hietograma'!$E$6=1,Ponto!B21,IF('Gerar Hietograma'!$E$6=2,A10a50!B22,IF('Gerar Hietograma'!$E$6=3,A50a400!B22))) -> 98 | C30: =IF('Gerar Hietograma'!$E$6=1,Ponto!C21,IF('Gerar Hietograma'!$E$6=2,A10a50!C22,IF('Gerar Hietograma'!$E$6=3,A50a400!C22))) -> 98 | D30: =IF('Gerar Hietograma'!$E$6=1,Ponto!D21,IF('Gerar Hietograma'!$E$6=2,A10a50!D22,IF('Gerar Hietograma'!$E$6=3,A50a400!D22))) -> 97 | E30: =IF('Gerar Hietograma'!$E$6=1,Ponto!E21,IF('Gerar Hietograma'!$E$6=2,A10a50!E22,IF('Gerar Hietograma'!$E$6=3,A50a400!E22))) -> 92 | F30: 19 | G30: =A30*'Gerar Hietograma'!$F$3 -> 1296 | H30: =IF('Gerar Hietograma'!$E$5=1,'Gerar Hietograma'!$F$4/100*B30,IF('Gerar Hietograma'!$E$5=2,'Gerar Hietograma'!$F$4/100*C30,IF('Gerar Hietograma'!$E$5=3,'Gerar Hietograma'!$F$4/100*D30,IF('Gerar Hietograma'!$E$5=4,'Gerar Hietograma'!$F$4/100*E30,0)))) -> 104.86 | I30: =T6+((U6-T6)*(T4-T5)) -> 100.58 | J30: ='Gerar Hietograma'!$F$3/'Gerar Hietograma'!$F$2*F29 -> 1080 | K30: 1.783333333 | M30: =InterpolacaoLinear(J30,$G$12:$G$32,$H$12:$H$32) -> 100.58 | N30: 1.783333333
A31: 0.95 | B31: =IF('Gerar Hietograma'!$E$6=1,Ponto!B22,IF('Gerar Hietograma'!$E$6=2,A10a50!B23,IF('Gerar Hietograma'!$E$6=3,A50a400!B23))) -> 99 | C31: =IF('Gerar Hietograma'!$E$6=1,Ponto!C22,IF('Gerar Hietograma'!$E$6=2,A10a50!C23,IF('Gerar Hietograma'!$E$6=3,A50a400!C23))) -> 99 | D31: =IF('Gerar Hietograma'!$E$6=1,Ponto!D22,IF('Gerar Hietograma'!$E$6=2,A10a50!D23,IF('Gerar Hietograma'!$E$6=3,A50a400!D23))) -> 99 | E31: =IF('Gerar Hietograma'!$E$6=1,Ponto!E22,IF('Gerar Hietograma'!$E$6=2,A10a50!E23,IF('Gerar Hietograma'!$E$6=3,A50a400!E23))) -> 97 | F31: 20 | G31: =A31*'Gerar Hietograma'!$F$3 -> 1368 | H31: =IF('Gerar Hietograma'!$E$5=1,'Gerar Hietograma'!$F$4/100*B31,IF('Gerar Hietograma'!$E$5=2,'Gerar Hietograma'!$F$4/100*C31,IF('Gerar Hietograma'!$E$5=3,'Gerar Hietograma'!$F$4/100*D31,IF('Gerar Hietograma'!$E$5=4,'Gerar Hietograma'!$F$4/100*E31,0)))) -> 105.93 | I31: =U6+((V6-U6)*(U4-U5)) -> 102.3633333 | J31: ='Gerar Hietograma'!$F$3/'Gerar Hietograma'!$F$2*F30 -> 1140 | K31: 1.783333333 | M31: =InterpolacaoLinear(J31,$G$12:$G$32,$H$12:$H$32) -> 102.3633333 | N31: 1.783333333
A32: 1 | B32: =IF('Gerar Hietograma'!$E$6=1,Ponto!B23,IF('Gerar Hietograma'!$E$6=2,A10a50!B24,IF('Gerar Hietograma'!$E$6=3,A50a400!B24))) -> 100 | C32: =IF('Gerar Hietograma'!$E$6=1,Ponto!C23,IF('Gerar Hietograma'!$E$6=2,A10a50!C24,IF('Gerar Hietograma'!$E$6=3,A50a400!C24))) -> 100 | D32: =IF('Gerar Hietograma'!$E$6=1,Ponto!D23,IF('Gerar Hietograma'!$E$6=2,A10a50!D24,IF('Gerar Hietograma'!$E$6=3,A50a400!D24))) -> 100 | E32: =IF('Gerar Hietograma'!$E$6=1,Ponto!E23,IF('Gerar Hietograma'!$E$6=2,A10a50!E24,IF('Gerar Hietograma'!$E$6=3,A50a400!E24))) -> 100 | F32: 21 | G32: =A32*'Gerar Hietograma'!$F$3 -> 1440 | H32: =IF('Gerar Hietograma'!$E$5=1,'Gerar Hietograma'!$F$4/100*B32,IF('Gerar Hietograma'!$E$5=2,'Gerar Hietograma'!$F$4/100*C32,IF('Gerar Hietograma'!$E$5=3,'Gerar Hietograma'!$F$4/100*D32,IF('Gerar Hietograma'!$E$5=4,'Gerar Hietograma'!$F$4/100*E32,0)))) -> 107 | I32: =V6+((W6-V6)*(V4-V5)) -> 103.4333333 | J32: ='Gerar Hietograma'!$F$3/'Gerar Hietograma'!$F$2*F31 -> 1200 | K32: 1.07 | M32: =InterpolacaoLinear(J32,$G$12:$G$32,$H$12:$H$32) -> 103.4333333 | N32: 1.07
F33: 22 | G33: 0 | H33: =IF('Gerar Hietograma'!$E$5=1,'Gerar Hietograma'!$F$4/100*B33,IF('Gerar Hietograma'!$E$5=2,'Gerar Hietograma'!$F$4/100*C33,IF('Gerar Hietograma'!$E$5=3,'Gerar Hietograma'!$F$4/100*D33,IF('Gerar Hietograma'!$E$5=4,'Gerar Hietograma'!$F$4/100*E33,0)))) -> 0 | I33: =W6+((X6-W6)*(W4-W5)) -> 104.325 | J33: ='Gerar Hietograma'!$F$3/'Gerar Hietograma'!$F$2*F32 -> 1260 | K33: 0.8916666667 | M33: =InterpolacaoLinear(J33,$G$12:$G$32,$H$12:$H$32) -> 104.325 | N33: 0.8916666667
A34: 1st | F34: 23 | G34: 0 | H34: =IF('Gerar Hietograma'!$E$5=1,'Gerar Hietograma'!$F$4/100*B34,IF('Gerar Hietograma'!$E$5=2,'Gerar Hietograma'!$F$4/100*C34,IF('Gerar Hietograma'!$E$5=3,'Gerar Hietograma'!$F$4/100*D34,IF('Gerar Hietograma'!$E$5=4,'Gerar Hietograma'!$F$4/100*E34,0)))) -> 0 | I34: =X6+((Y6-X6)*(X4-X5)) -> 105.2166667 | J34: ='Gerar Hietograma'!$F$3/'Gerar Hietograma'!$F$2*F33 -> 1320 | K34: 0.8916666667 | M34: =InterpolacaoLinear(J34,$G$12:$G$32,$H$12:$H$32) -> 105.2166667 | N34: 0.8916666667
A35: 2nd | F35: 24 | G35: 0 | H35: =IF('Gerar Hietograma'!$E$5=1,'Gerar Hietograma'!$F$4/100*B35,IF('Gerar Hietograma'!$E$5=2,'Gerar Hietograma'!$F$4/100*C35,IF('Gerar Hietograma'!$E$5=3,'Gerar Hietograma'!$F$4/100*D35,IF('Gerar Hietograma'!$E$5=4,'Gerar Hietograma'!$F$4/100*E35,0)))) -> 0 | I35: =Y6+((Z6-Y6)*(Y4-Y5)) -> 106.1083333 | J35: ='Gerar Hietograma'!$F$3/'Gerar Hietograma'!$F$2*F34 -> 1380 | K35: 0.8916666667 | M35: =InterpolacaoLinear(J35,$G$12:$G$32,$H$12:$H$32) -> 106.1083333 | N35: 0.8916666667
A36: 3rd | F36: 25 | G36: 0 | H36: =IF('Gerar Hietograma'!$E$5=1,'Gerar Hietograma'!$F$4/100*B36,IF('Gerar Hietograma'!$E$5=2,'Gerar Hietograma'!$F$4/100*C36,IF('Gerar Hietograma'!$E$5=3,'Gerar Hietograma'!$F$4/100*D36,IF('Gerar Hietograma'!$E$5=4,'Gerar Hietograma'!$F$4/100*E36,0)))) -> 0 | I36: =Z6+((AA6-Z6)*(Z4-Z5)) -> 107 | J36: ='Gerar Hietograma'!$F$3/'Gerar Hietograma'!$F$2*F35 -> 1440 | K36: 0.8916666667 | M36: =InterpolacaoLinear(J36,$G$12:$G$32,$H$12:$H$32) -> 107 | N36: 0.8916666667
A37: 4th | F37: 26 | G37: 0 | H37: =IF('Gerar Hietograma'!$E$5=1,'Gerar Hietograma'!$F$4/100*B37,IF('Gerar Hietograma'!$E$5=2,'Gerar Hietograma'!$F$4/100*C37,IF('Gerar Hietograma'!$E$5=3,'Gerar Hietograma'!$F$4/100*D37,IF('Gerar Hietograma'!$E$5=4,'Gerar Hietograma'!$F$4/100*E37,0)))) -> 0 | I37: =AA6+((AB6-AA6)*(AA4-AA5)) -> 17.83333333 | J37: ='Gerar Hietograma'!$F$3/'Gerar Hietograma'!$F$2*F36 -> 1500 | K37: -89.16666667 | M37: =InterpolacaoLinear(J37,$G$12:$G$32,$H$12:$H$32) -> 107 | N37: 0
F38: 27 | G38: 0 | H38: =IF('Gerar Hietograma'!$E$5=1,'Gerar Hietograma'!$F$4/100*B38,IF('Gerar Hietograma'!$E$5=2,'Gerar Hietograma'!$F$4/100*C38,IF('Gerar Hietograma'!$E$5=3,'Gerar Hietograma'!$F$4/100*D38,IF('Gerar Hietograma'!$E$5=4,'Gerar Hietograma'!$F$4/100*E38,0)))) -> 0 | I38: =AB6+((AC6-AB6)*(AB4-AB5)) -> 0 | J38: ='Gerar Hietograma'!$F$3/'Gerar Hietograma'!$F$2*F37 -> 1560 | K38: -17.83333333 | M38: =InterpolacaoLinear(J38,$G$12:$G$32,$H$12:$H$32) -> 107 | N38: 0
A39: Ponto | F39: 28 | G39: 0 | H39: =IF('Gerar Hietograma'!$E$5=1,'Gerar Hietograma'!$F$4/100*B39,IF('Gerar Hietograma'!$E$5=2,'Gerar Hietograma'!$F$4/100*C39,IF('Gerar Hietograma'!$E$5=3,'Gerar Hietograma'!$F$4/100*D39,IF('Gerar Hietograma'!$E$5=4,'Gerar Hietograma'!$F$4/100*E39,0)))) -> 0 | I39: =AC6+((AD6-AC6)*(AC4-AC5)) -> 0 | J39: ='Gerar Hietograma'!$F$3/'Gerar Hietograma'!$F$2*F38 -> 1620 | K39: 0 | M39: =InterpolacaoLinear(J39,$G$12:$G$32,$H$12:$H$32) -> 107 | N39: 0
A40: Área 10 a 50 | F40: 29 | G40: 0 | H40: =IF('Gerar Hietograma'!$E$5=1,'Gerar Hietograma'!$F$4/100*B40,IF('Gerar Hietograma'!$E$5=2,'Gerar Hietograma'!$F$4/100*C40,IF('Gerar Hietograma'!$E$5=3,'Gerar Hietograma'!$F$4/100*D40,IF('Gerar Hietograma'!$E$5=4,'Gerar Hietograma'!$F$4/100*E40,0)))) -> 0 | I40: =AD6+((AE6-AD6)*(AD4-AD5)) -> 0 | J40: ='Gerar Hietograma'!$F$3/'Gerar Hietograma'!$F$2*F39 -> 1680 | K40: 0 | M40: =InterpolacaoLinear(J40,$G$12:$G$32,$H$12:$H$32) -> 107 | N40: 0
A41: Área 50 a 400 | F41: 30 | G41: 0 | H41: =IF('Gerar Hietograma'!$E$5=1,'Gerar Hietograma'!$F$4/100*B41,IF('Gerar Hietograma'!$E$5=2,'Gerar Hietograma'!$F$4/100*C41,IF('Gerar Hietograma'!$E$5=3,'Gerar Hietograma'!$F$4/100*D41,IF('Gerar Hietograma'!$E$5=4,'Gerar Hietograma'!$F$4/100*E41,0)))) -> 0 | I41: =AE6+((AF6-AE6)*(AE4-AE5)) -> 0 | J41: ='Gerar Hietograma'!$F$3/'Gerar Hietograma'!$F$2*F40 -> 1740 | K41: 0 | M41: =InterpolacaoLinear(J41,$G$12:$G$32,$H$12:$H$32) -> 107 | N41: 0
F42: 31 | G42: 0 | H42: =IF('Gerar Hietograma'!$E$5=1,'Gerar Hietograma'!$F$4/100*B42,IF('Gerar Hietograma'!$E$5=2,'Gerar Hietograma'!$F$4/100*C42,IF('Gerar Hietograma'!$E$5=3,'Gerar Hietograma'!$F$4/100*D42,IF('Gerar Hietograma'!$E$5=4,'Gerar Hietograma'!$F$4/100*E42,0)))) -> 0 | I42: =AF6+((AG6-AF6)*(AF4-AF5)) -> 0 | J42: ='Gerar Hietograma'!$F$3/'Gerar Hietograma'!$F$2*F41 -> 1800 | K42: 0 | M42: =InterpolacaoLinear(J42,$G$12:$G$32,$H$12:$H$32) -> 107 | N42: 0
F43: 32 | G43: 0 | H43: =IF('Gerar Hietograma'!$E$5=1,'Gerar Hietograma'!$F$4/100*B43,IF('Gerar Hietograma'!$E$5=2,'Gerar Hietograma'!$F$4/100*C43,IF('Gerar Hietograma'!$E$5=3,'Gerar Hietograma'!$F$4/100*D43,IF('Gerar Hietograma'!$E$5=4,'Gerar Hietograma'!$F$4/100*E43,0)))) -> 0 | I43: =AG6+((AH6-AG6)*(AG4-AG5)) -> 0 | J43: ='Gerar Hietograma'!$F$3/'Gerar Hietograma'!$F$2*F42 -> 1860 | K43: 0 | M43: =InterpolacaoLinear(J43,$G$12:$G$32,$H$12:$H$32) -> 107 | N43: 0
F44: 33 | G44: 0 | H44: =IF('Gerar Hietograma'!$E$5=1,'Gerar Hietograma'!$F$4/100*B44,IF('Gerar Hietograma'!$E$5=2,'Gerar Hietograma'!$F$4/100*C44,IF('Gerar Hietograma'!$E$5=3,'Gerar Hietograma'!$F$4/100*D44,IF('Gerar Hietograma'!$E$5=4,'Gerar Hietograma'!$F$4/100*E44,0)))) -> 0 | I44: =AH6+((AI6-AH6)*(AH4-AH5)) -> 0 | J44: ='Gerar Hietograma'!$F$3/'Gerar Hietograma'!$F$2*F43 -> 1920 | K44: 0 | M44: =InterpolacaoLinear(J44,$G$12:$G$32,$H$12:$H$32) -> 107 | N44: 0
F45: 34 | G45: 0 | H45: =IF('Gerar Hietograma'!$E$5=1,'Gerar Hietograma'!$F$4/100*B45,IF('Gerar Hietograma'!$E$5=2,'Gerar Hietograma'!$F$4/100*C45,IF('Gerar Hietograma'!$E$5=3,'Gerar Hietograma'!$F$4/100*D45,IF('Gerar Hietograma'!$E$5=4,'Gerar Hietograma'!$F$4/100*E45,0)))) -> 0 | I45: =AI6+((AJ6-AI6)*(AI4-AI5)) -> 0 | J45: ='Gerar Hietograma'!$F$3/'Gerar Hietograma'!$F$2*F44 -> 1980 | K45: 0 | M45: =InterpolacaoLinear(J45,$G$12:$G$32,$H$12:$H$32) -> 107 | N45: 0
F46: 35 | G46: 0 | H46: =IF('Gerar Hietograma'!$E$5=1,'Gerar Hietograma'!$F$4/100*B46,IF('Gerar Hietograma'!$E$5=2,'Gerar Hietograma'!$F$4/100*C46,IF('Gerar Hietograma'!$E$5=3,'Gerar Hietograma'!$F$4/100*D46,IF('Gerar Hietograma'!$E$5=4,'Gerar Hietograma'!$F$4/100*E46,0)))) -> 0 | I46: =AJ6+((AK6-AJ6)*(AJ4-AJ5)) -> 0 | J46: ='Gerar Hietograma'!$F$3/'Gerar Hietograma'!$F$2*F45 -> 2040 | K46: 0 | M46: =InterpolacaoLinear(J46,$G$12:$G$32,$H$12:$H$32) -> 107 | N46: 0
F47: 36 | G47: 0 | H47: =IF('Gerar Hietograma'!$E$5=1,'Gerar Hietograma'!$F$4/100*B47,IF('Gerar Hietograma'!$E$5=2,'Gerar Hietograma'!$F$4/100*C47,IF('Gerar Hietograma'!$E$5=3,'Gerar Hietograma'!$F$4/100*D47,IF('Gerar Hietograma'!$E$5=4,'Gerar Hietograma'!$F$4/100*E47,0)))) -> 0 | I47: =AK6+((AL6-AK6)*(AK4-AK5)) -> 0 | J47: ='Gerar Hietograma'!$F$3/'Gerar Hietograma'!$F$2*F46 -> 2100 | K47: 0 | M47: =InterpolacaoLinear(J47,$G$12:$G$32,$H$12:$H$32) -> 107 | N47: 0
F48: 37 | G48: 0 | H48: =IF('Gerar Hietograma'!$E$5=1,'Gerar Hietograma'!$F$4/100*B48,IF('Gerar Hietograma'!$E$5=2,'Gerar Hietograma'!$F$4/100*C48,IF('Gerar Hietograma'!$E$5=3,'Gerar Hietograma'!$F$4/100*D48,IF('Gerar Hietograma'!$E$5=4,'Gerar Hietograma'!$F$4/100*E48,0)))) -> 0 | I48: =AL6+((AM6-AL6)*(AL4-AL5)) -> 0 | J48: ='Gerar Hietograma'!$F$3/'Gerar Hietograma'!$F$2*F47 -> 2160 | K48: 0 | M48: =InterpolacaoLinear(J48,$G$12:$G$32,$H$12:$H$32) -> 107 | N48: 0
F49: 38 | G49: 0 | H49: =IF('Gerar Hietograma'!$E$5=1,'Gerar Hietograma'!$F$4/100*B49,IF('Gerar Hietograma'!$E$5=2,'Gerar Hietograma'!$F$4/100*C49,IF('Gerar Hietograma'!$E$5=3,'Gerar Hietograma'!$F$4/100*D49,IF('Gerar Hietograma'!$E$5=4,'Gerar Hietograma'!$F$4/100*E49,0)))) -> 0 | I49: =AM6+((AN6-AM6)*(AM4-AM5)) -> 0 | J49: ='Gerar Hietograma'!$F$3/'Gerar Hietograma'!$F$2*F48 -> 2220 | K49: 0 | M49: =InterpolacaoLinear(J49,$G$12:$G$32,$H$12:$H$32) -> 107 | N49: 0
F50: 39 | G50: 0 | H50: =IF('Gerar Hietograma'!$E$5=1,'Gerar Hietograma'!$F$4/100*B50,IF('Gerar Hietograma'!$E$5=2,'Gerar Hietograma'!$F$4/100*C50,IF('Gerar Hietograma'!$E$5=3,'Gerar Hietograma'!$F$4/100*D50,IF('Gerar Hietograma'!$E$5=4,'Gerar Hietograma'!$F$4/100*E50,0)))) -> 0 | I50: =AN6+((AO6-AN6)*(AN4-AN5)) -> 0 | J50: ='Gerar Hietograma'!$F$3/'Gerar Hietograma'!$F$2*F49 -> 2280 | K50: 0 | M50: =InterpolacaoLinear(J50,$G$12:$G$32,$H$12:$H$32) -> 107 | N50: 0
F51: 40 | G51: 0 | H51: =IF('Gerar Hietograma'!$E$5=1,'Gerar Hietograma'!$F$4/100*B51,IF('Gerar Hietograma'!$E$5=2,'Gerar Hietograma'!$F$4/100*C51,IF('Gerar Hietograma'!$E$5=3,'Gerar Hietograma'!$F$4/100*D51,IF('Gerar Hietograma'!$E$5=4,'Gerar Hietograma'!$F$4/100*E51,0)))) -> 0 | I51: =AO6+((AP6-AO6)*(AO4-AO5)) -> 0 | J51: ='Gerar Hietograma'!$F$3/'Gerar Hietograma'!$F$2*F50 -> 2340 | K51: 0 | M51: =InterpolacaoLinear(J51,$G$12:$G$32,$H$12:$H$32) -> 107 | N51: 0
F52: 41 | G52: 0 | H52: =IF('Gerar Hietograma'!$E$5=1,'Gerar Hietograma'!$F$4/100*B52,IF('Gerar Hietograma'!$E$5=2,'Gerar Hietograma'!$F$4/100*C52,IF('Gerar Hietograma'!$E$5=3,'Gerar Hietograma'!$F$4/100*D52,IF('Gerar Hietograma'!$E$5=4,'Gerar Hietograma'!$F$4/100*E52,0)))) -> 0 | I52: =AP6+((AQ6-AP6)*(AP4-AP5)) -> 0 | J52: ='Gerar Hietograma'!$F$3/'Gerar Hietograma'!$F$2*F51 -> 2400 | K52: 0 | M52: =InterpolacaoLinear(J52,$G$12:$G$32,$H$12:$H$32) -> 107 | N52: 0
F53: 42 | G53: 0 | H53: =IF('Gerar Hietograma'!$E$5=1,'Gerar Hietograma'!$F$4/100*B53,IF('Gerar Hietograma'!$E$5=2,'Gerar Hietograma'!$F$4/100*C53,IF('Gerar Hietograma'!$E$5=3,'Gerar Hietograma'!$F$4/100*D53,IF('Gerar Hietograma'!$E$5=4,'Gerar Hietograma'!$F$4/100*E53,0)))) -> 0 | I53: =AQ6+((AR6-AQ6)*(AQ4-AQ5)) -> 0 | J53: ='Gerar Hietograma'!$F$3/'Gerar Hietograma'!$F$2*F52 -> 2460 | K53: 0 | M53: =InterpolacaoLinear(J53,$G$12:$G$32,$H$12:$H$32) -> 107 | N53: 0
I54: =AR6+((AW3-AR6)*(AR4-AR5)) -> 0 | J54: ='Gerar Hietograma'!$F$3/'Gerar Hietograma'!$F$2*F53 -> 2520 | K54: 0 | M54: =InterpolacaoLinear(J54,$G$12:$G$32,$H$12:$H$32) -> 107 | N54: 0
